[Event "Portuguese Team Blitz-ch 2022"]
[Site "Viseu"]
[Date "2022.06.12"]
[Round "3.3"]
[White "Silva, Miguel Antonio Neto"]
[Black "Bartolo, Filipe Diogo Correia"]
[Result "1-0"]
[ECO "A88"]
[WhiteElo "2215"]
[BlackElo "1811"]
[Annotator "TA"]
[PlyCount "81"]
[EventDate "2022.06.12"]
[EventType "team-tourn"]
[EventCountry "POR"]
[SourceTitle "playchess.com"]
[Source "ChessBase"]
[SourceQuality "1"]
[TimeControl "180+2"]

{[%evp 18,80,52,67,32,37,20,-64,-62,-140,-52,-147,-126,-380,-97,-116,-117,-128,109,117,384,50,187,131,162,159,162,168,155,0,0,0,0,0,0,-68,-57,-76,-12,-46,351,13,21,39,29985,29986,29994,29990,29994,29995,29995,29990,29990,29991,29991,29992,29992,29993,29994,29995,29995,29996,29997,29998,29999]} 1. Nf3 {[%emt 0:00:04] Roiz,M} f5 {[%emt 0:00:05]} 2. c4 {[%emt 0:00:04]} Nf6 {[%emt 0:00:01]} 3. Nc3 {[%emt 0:00:01]} g6 {[%emt 0:00:01]} 4. g3 {[%emt 0:00:00]} Bg7 {[%emt 0:00:01]} 5. Bg2 {[%emt 0:00:01]} O-O {[%emt 0:00:01]} 6. O-O {[%emt 0:00:01]} d6 {[%emt 0:00:01]} 7. d4 {[%emt 0:00:02]} c6 {[%emt 0:00:01]} 8. b3 {[%emt 0:00:02]} Na6 {[%emt 0:00:14] 8...Qa5 is the hot move.} 9. Bb2 {[%emt 0:00:00]} Qe8 {[%emt 0:00:06]} 10. Re1 {[%emt 0:00:10]} e5 {[%emt 0:00:02] A88: Dutch Defence: Leningrad System: 5 Nf3 0-0 6 0-0 d6 7 Nc3 c6.} 11. dxe5 {[%emt 0:00:02]} (11. e4 {is more complex.} f4 12. Ba3 exd4 13. Qxd4 Nd7 14. e5) 11... dxe5 {[%emt 0:00:01] [#]} 12. a3 $146 {[%emt 0:00:04]} (12. e4 $11) ({Predecessor:} 12. e4 f4 13. Ba3 Rf7 14. h3 fxg3 15. fxg3 Nh5 16. Kh2 Be6 17. Qe2 Rd8 18. Rad1 {1-0 (56) Juswanto,D (2505)-Hoang,T (2447) Jakarta 2004 CBM 100 [Roiz,M]}) 12... e4 $15 {[%emt 0:00:26] And now ...e3 would win. Black is slightly better.} 13. Nd4 {[%emt 0:00:08]} (13. Ng5 $15) 13... Nc5 {[%emt 0:00:01]} (13... Ng4 $17 {...e3 is the strong threat.} 14. Nc2 Be6) 14. a4 {[%emt 0:00:14]} (14. b4 $15 Ne6 15. Na4) 14... Ng4 $17 {[%emt 0:00:18] White must now prevent ...e3.} 15. h3 $2 {[%emt 0:00:23][%mdl 8192] [#]} (15. b4 $17 {was the only defense.} Bxd4 16. Qxd4) 15... Ne5 $2 {[%emt 0:00:11]} (15... e3 $1 $19 {is more deadly.} 16. f4 (16. hxg4 $2 exf2+ 17. Kxf2 fxg4+ 18. Nf3 Bf5 $19) 16... Nf2) 16. Ba3 {[%emt 0:00:04]} b6 {[%emt 0:00:22]} 17. a5 {[%emt 0:00:01]} e3 $2 {[%emt 0:00:27]} (17... f4 $17 {stays on course.} 18. g4 e3) 18. f4 $16 {[%emt 0:00:03]} Nf7 $2 {[%emt 0:00:07][%mdl 8192]} (18... Bd7 $16) 19. Rc1 $2 {[%emt 0:00:05]} (19. Bxc6 $18 Qd8 20. Bxa8 Qxd4 21. axb6 $1 axb6 22. Bb4) 19... Nd8 {[%emt 0:00:10]} (19... Bd7 $14) 20. Na4 {[%emt 0:00:09]} ({White should try} 20. Ncb5 $18) 20... Nxa4 {[%emt 0:00:36]} 21. Bxf8 {[%emt 0:00:03]} ({But not} 21. bxa4 $6 Rf7 $16) 21... Nb2 {[%emt 0:00:04] [#]} 22. Qc2 $1 {[%emt 0:00:04] Hoping for Bxg7.} Qxf8 {[%emt 0:00:01]} 23. Nxc6 {[%emt 0:00:12]} (23. Qxb2 $16 {Strongly threatening Red1.} Bb7 24. a6 Bxa6 25. Red1) 23... Nxc6 $11 {[%emt 0:00:08]} 24. Bxc6 {[%emt 0:00:02]} Rb8 {[%emt 0:00:01]} 25. axb6 {[%emt 0:00:08]} Rxb6 {[%emt 0:00:03]} 26. Bf3 {[%emt 0:00:02]} ({Better is} 26. Bd5+ $11 Kh8 27. c5) 26... Qb4 $1 $15 {[%emt 0:00:08]} 27. c5 {[%emt 0:00:10]} Ra6 {[%emt 0:00:05]} (27... Rb5 $1 $17) 28. c6 {[%emt 0:00:17]} Qd2 $2 {[%emt 0:00:04][%mdl 8192]} (28... Bd4 $1 $15 {stays ahead.}) 29. c7 $2 {[%emt 0:00:14]} (29. Qc5 $18 Qd4 30. Bd5+ Kh8 31. Qd6) 29... Rd6 {[%emt 0:00:02] Prevents Bd5+.} 30. Qc5 {[%emt 0:00:11]} Bd4 $2 {[%emt 0:00:05][%mdl 8192]} 31. Qxd6 {[%emt 0:00:05] White mates.} Nd3 {[%emt 0:00:05]} 32. Qd8+ {[%emt 0:00:08]} Kf7 {[%emt 0:00:02]} 33. Bd5+ {[%emt 0:00:05]} Kg7 {[%emt 0:00:01] [#]} 34. Qxc8 $1 {[%emt 0:00:12]} Nxc1 {[%emt 0:00:01]} 35. Qd7+ {[%emt 0:00:14]} Kh6 {[%emt 0:00:01] [#]} 36. Rxc1 $1 {[%emt 0:00:07]} Qxc1+ {[%emt 0:00:01]} (36... Qxe2 37. c8=Q) 37. Kh2 {[%emt 0:00:00]} Qf1 {[%emt 0:00:05]} 38. c8=Q {[%emt 0:00:06]} Qxe2+ {[%emt 0:00:03]} 39. Bg2 {[%emt 0:00:01]} Qf2 {[%emt 0:00:03]} 40. Qf8+ {[%emt 0:00:01]} Kh5 {[%emt 0:00:01]} 41. Qxh7# {[%emt 0:00:01] White used his chance.  Weighted Error Value: White=0.69/Black=0.86} 1-0

[Event "Portuguese Team Blitz-ch 2022"]
[Site "Viseu"]
[Date "2022.06.12"]
[Round "3.4"]
[White "Gallo Garcia, Kemel Antonio"]
[Black "Silva, Goncalo Nuno Neto Pi"]
[Result "0-1"]
[ECO "A10"]
[WhiteElo "2332"]
[BlackElo "2169"]
[Annotator "TA"]
[PlyCount "48"]
[EventDate "2022.06.12"]
[EventType "team-tourn"]
[EventCountry "POR"]
[SourceTitle "playchess.com"]
[Source "ChessBase"]
[SourceQuality "1"]
[TimeControl "180+2"]

{[%evp 16,48,4,-10,1,-6,0,0,0,7,2,-33,-16,-11,-26,-33,-17,-33,-20,-54,24,-44,-14,-61,-40,-299,-299,-293,-296,-388,-366,-708,-631,-2003,-1825]} 1. c4 g6 2. Nc3 Bg7 3. g3 e5 4. Bg2 d6 5. Nf3 Nc6 6. d3 f5 7. O-O Nf6 8. Rb1 O-O 9. Bd2 h6 {[%cal Bh7h6,Bh6h5,Bh5h4][%mdl 32] A26: English Opening vs King's Indian with ...Nc6 and d3.} 10. b4 {[%cal Bb2b4,Bb4b5][%mdl 32]} g5 11. b5 Ne7 {The position is equal.} 12. e3 Ng6 13. Qc2 {[#]} g4 $146 ({Predecessor:} 13... Bd7 14. Ne1 c6 15. bxc6 Bxc6 16. Nd5 Rb8 17. Nxf6+ Qxf6 18. Qb3 Rfc8 19. c5+ Kh8 20. cxd6 Qxd6 {1-0 (44) Wild,M (1559)-Jorczik,A (1357) Willingen 2004}) 14. Ne1 h5 15. f3 h4 16. fxg4 Nxg4 17. Nd5 Nf6 (17... hxg3 $15 18. hxg3 Be6) 18. d4 ({White should try} 18. Qd1 $11) 18... e4 {[#] ...Nxd5 is the strong threat.} 19. Nf4 (19. Nxf6+ $11 {should be considered.} Rxf6 20. g4) 19... Nxf4 (19... Qe8 $5 {[%cal Rh4g3]} 20. gxh4 Nxf4 21. Rxf4 Bh6 $15) 20. Rxf4 {[%mdl 8192] Now White is beyond hope.} ({Only move:} 20. gxf4 $15 Qe7 21. Rf2) 20... hxg3 $19 21. hxg3 Nh5 $1 {[%csl LRf4,LRg3][%cal Bf6h5,Bh5g3,Bg3e4][%mdl 32]} 22. Rh4 Nxg3 23. Rh3 {[#]} (23. Rh2 Qg5 24. Rb3) 23... f4 24. Qxe4 Nxe4 {Weighted Error Value: White=0.97/Black=0.17 (very precise)} 0-1

[Event "Portuguese Team Blitz-ch 2022"]
[Site "Viseu"]
[Date "2022.06.12"]
[Round "3.5"]
[White "Padeiro, Jose"]
[Black "Fernandez Lopez, Ruben"]
[Result "0-1"]
[ECO "B24"]
[WhiteElo "2207"]
[BlackElo "2324"]
[Annotator "TA"]
[PlyCount "96"]
[EventDate "2022.06.12"]
[EventType "team-tourn"]
[EventCountry "POR"]
[SourceTitle "playchess.com"]
[Source "ChessBase"]
[SourceQuality "1"]
[TimeControl "180+2"]

{[%evp 9,96,3,19,0,12,4,17,8,9,4,9,12,12,12,14,7,5,7,18,17,7,9,22,20,20,16,27,19,9,12,10,11,11,11,9,9,9,9,9,13,19,0,0,0,0,-4,-4,-7,-7,-12,0,0,0,0,108,116,102,99,222,218,222,0,273,273,273,273,252,194,194,0,255,162,125,151,351,338,501,301,285,293,260,33,761,124,139,0,0,-594,-585]} 1. e4 c5 2. Nc3 {[%cal Bb1c3,Bc3e2,Be2f4][%mdl 32]} Nc6 3. Bb5 Nd4 4. Nf3 a6 5. Bd3 g6 6. Nxd4 {B23: Closed Sicilian: Lines without g3.} cxd4 7. Ne2 Bg7 8. c3 {The position is equal.} dxc3 9. dxc3 d5 10. O-O Nf6 11. exd5 Qxd5 12. Nf4 Qd6 {[#]} 13. Bc2 $146 {With the idea Qxd6.} ({Predecessor:} 13. Be2 Qc7 14. Bf3 O-O 15. Nd5 Nxd5 16. Qxd5 Rb8 17. Be3 Be5 18. g3 b6 19. Qc6 {½-½ (33) Kovalev,V (2634)-Maghsoodloo,P (2706) Dubai 2021}) 13... Qxd1 (13... Qc7 {seems wilder.} 14. Nd5 Nxd5 15. Qxd5 Bd7) 14. Rxd1 O-O 15. Be3 Bg4 16. f3 Bd7 17. Bb3 Bc6 18. Nd5 Nxd5 19. Bxd5 Rfd8 20. Bb3 e6 21. Bb6 Rxd1+ 22. Rxd1 a5 23. a4 Bf6 24. Kf2 Kf8 25. Bd4 Bxd4+ 26. Rxd4 $11 {[%mdl 4096] Endgame KRB-KRB} Ke7 27. Bc2 e5 28. Rd2 f5 29. Ke3 h5 30. h4 Rg8 31. f4 exf4+ (31... e4 $1 $11 {keeps the balance.}) 32. Kxf4 $16 Rc8 33. Kg5 Kf7 (33... Be8 $16) 34. Bb3+ $18 Kg7 35. Re2 $2 {[#]} (35. Rd6 $18) 35... Rc7 $2 {[%mdl 8192]} (35... Be4 $11 {and Black has nothing to worry.}) 36. Re6 Bxg2 37. Rxg6+ Kh7 38. Rh6+ Kg7 39. Rg6+ ({Much less strong is} 39. Rxh5 Rc6 $16) (39. Bd1 $142) 39... Kh7 40. Rf6 Rg7+ 41. Kxf5 {Rf7 is the strong threat.} Bh3+ $2 (41... Rg4 $16) 42. Ke5 Rg4 (42... Re7+ $142 43. Kd6 Rd7+ 44. Kc5 Rg7) 43. Bc2+ Kg7 44. Rb6 Bg2 45. Rd6 $2 (45. Bf5 $18 Rg3 46. Rb5) 45... Rxh4 {[%mdl 8192]} (45... Bc6 $14) 46. Rd7+ $2 (46. Rg6+ $18 {and the rest is easy.} Kf8 47. Rxg2) 46... Kf8 $16 47. Kf6 (47. Bf5 $16 {Black must now prevent Kf6.} Bc6 48. Rh7) 47... Rf4+ $11 48. Bf5 $2 {[%mdl 8192] [#]} (48. Ke5 $11 {and White is okay.} Rf2 49. Bg6) 48... Rxf5+ $1 {[%mdl 512] Weighted Error Value: White=0.75/Black=0.28 (precise)} 0-1

[Event "Portuguese Team Blitz-ch 2022"]
[Site "Viseu"]
[Date "2022.06.12"]
[Round "3.6"]
[White "Sismeiro, Miguel"]
[Black "Monteiro, Paulo Alexandre G"]
[Result "1/2-1/2"]
[ECO "A04"]
[WhiteElo "2148"]
[BlackElo "1983"]
[Annotator "TA"]
[PlyCount "112"]
[EventDate "2022.06.12"]
[EventType "team-tourn"]
[EventCountry "POR"]
[SourceTitle "playchess.com"]
[Source "ChessBase"]
[SourceQuality "1"]
[TimeControl "180+2"]

{[%evp 18,112,0,-26,0,0,0,-10,0,0,0,0,0,-33,-31,-46,-23,-142,-20,-26,0,0,89,73,66,72,91,0,3,0,8,0,8,8,8,8,8,8,8,8,8,8,8,8,8,8,8,8,8,0,8,8,8,8,24,24,24,24,24,0,0,0,0,0,0,0,0,0,0,0,0,0,0,0,0,0,8,0,0,0,0,0,0,0,8,0,0,0,0,0,0,0,0,0,0,0,0]} 1. Nf3 {[%emt 0:00:01]} c5 {[%emt 0:00:01]} 2. e3 {[%emt 0:00:01]} Nf6 {[%emt 0:00:05]} 3. b3 {[%emt 0:00:01]} b6 {[%emt 0:00:02]} 4. Bb2 {[%emt 0:00:01]} Bb7 {[%emt 0:00:00]} 5. Be2 {[%emt 0:00:01]} e6 {[%emt 0:00:02]} 6. O-O {[%emt 0:00:02]} Be7 {[%emt 0:00:01]} 7. d4 {[%emt 0:00:02]} cxd4 {[%emt 0:00:03]} 8. exd4 {[%emt 0:00:06]} O-O {[%emt 0:00:03]} 9. c4 {[%emt 0:00:02]} d5 {[%emt 0:00:02]} 10. Nc3 {[%emt 0:00:06]} Nbd7 {[%emt 0:00:16] A13: English Opening: 1...e6.} 11. Re1 {[%emt 0:00:06]} Rc8 {[%emt 0:00:03]} 12. Rc1 {[%emt 0:00:31]} a6 {[%emt 0:00:50] [#]} 13. cxd5 $146 {[%emt 0:00:11]} ({Predecessor:} 13. Ne5 dxc4 14. bxc4 Nxe5 15. dxe5 Nd7 16. Bd3 h6 17. Ne4 Nc5 18. Nxc5 Bxc5 19. Be4 Bxe4 20. Rxe4 {0-1 (44) Lopez Idarraga,D (2009)-Stoleriu,G (2349) Chess.com INT 2020}) 13... Nxd5 {[%emt 0:00:06]} 14. Nxd5 {[%emt 0:00:01]} Bxd5 {[%emt 0:00:16]} 15. Ne5 {[%emt 0:00:41]} Nxe5 {[%emt 0:00:08]} 16. dxe5 {[%emt 0:00:01]} b5 {[%emt 0:00:09]} 17. Qd4 {[%emt 0:00:23]} (17. Qd2 $11) 17... Qd7 {[%emt 0:00:17]} ({Black should play} 17... Qa5 $17 18. a4 {[#]} Bc5 $1) 18. Bf3 $11 {[%emt 0:00:07]} Rxc1 {[%emt 0:00:23]} (18... Rcd8 $5 {[%cal Rd5f3]}) 19. Rxc1 {[%emt 0:00:03]} Rc8 {[%emt 0:00:02]} (19... Rd8 $11 {remains equal.}) 20. Rxc8+ $16 {[%emt 0:00:50]} Qxc8 {[%emt 0:00:01]} 21. Bxd5 {[%emt 0:00:04] [#] Strongly threatening Be4.} exd5 {[%emt 0:00:01][%mdl 4096] Endgame KQB-KQB} 22. h3 {[%emt 0:00:04]} ({Not} 22. Qxd5 $2 Qc2 23. g3 (23. Qa8+ $2 Bf8 $19) 23... Qxb2 $19) (22. e6 $1 $16 {[%csl Gb2][%cal Rd4g7]} Bf6 23. exf7+ Kxf7 24. Qxd5+ Qe6 25. Qxe6+ Kxe6 26. Bxf6 Kxf6 27. Kf1) 22... Qe6 {[%emt 0:00:16]} 23. g4 {[%emt 0:00:07]} h6 {[%emt 0:00:03]} 24. Kg2 {[%emt 0:00:01]} f6 {[%emt 0:00:12]} 25. f4 {[%emt 0:00:05]} fxe5 {[%emt 0:00:06]} 26. Qxe5 {[%emt 0:00:02]} Qxe5 {[%emt 0:00:05]} 27. Bxe5 $11 {[%emt 0:00:01] KB-KB} g6 {[%emt 0:00:10]} 28. Kf3 {[%emt 0:00:01]} Kf7 {[%emt 0:00:00]} 29. Ke3 {[%emt 0:00:03]} Ke6 {[%emt 0:00:01]} 30. Kd4 {[%emt 0:00:02]} h5 {[%emt 0:00:06]} 31. Bg7 {[%emt 0:00:08]} Ba3 {[%emt 0:00:02]} 32. Kd3 {[%emt 0:00:04]} Bd6 {[%emt 0:00:03]} 33. f5+ {[%emt 0:00:03]} Kf7 {[%emt 0:00:09]} 34. Bb2 {[%emt 0:00:04]} hxg4 {[%emt 0:00:02]} 35. hxg4 {[%emt 0:00:01]} gxf5 {[%emt 0:00:01]} 36. gxf5 {[%emt 0:00:00] And now Kd4 would win.} Bc5 {[%emt 0:00:02]} 37. Bd4 {[%emt 0:00:01]} Bd6 {[%emt 0:00:03]} 38. a4 {[%emt 0:00:01]} bxa4 {[%emt 0:00:03] The position is equal.} 39. bxa4 {[%emt 0:00:01]} Ke7 {[%emt 0:00:02]} 40. Bg7 {[%emt 0:00:03] aiming for Kd4.} Bc5 {[%emt 0:00:01]} 41. Bc3 {[%emt 0:00:05]} Kf7 {[%emt 0:00:02]} 42. Bd4 {[%emt 0:00:01]} Bd6 {[%emt 0:00:01]} 43. Ke2 {[%emt 0:00:03]} Ke7 {[%emt 0:00:02]} 44. Kf3 {[%emt 0:00:00]} Kf7 {[%emt 0:00:01]} 45. Kg4 {[%emt 0:00:01]} Bc7 {[%emt 0:00:02]} 46. Kg5 {[%emt 0:00:02]} Bd8+ {[%emt 0:00:00]} 47. Kf4 {[%emt 0:00:01] Hoping for Ke5.} Bc7+ {[%emt 0:00:02]} 48. Be5 {[%emt 0:00:01]} Bb6 {[%emt 0:00:00]} 49. Bd6 {[%emt 0:00:04]} Bd4 {[%emt 0:00:02]} 50. Be5 {[%emt 0:00:01]} Bc5 {[%emt 0:00:01]} 51. Bc7 {[%emt 0:00:02]} Bd4 {[%emt 0:00:02]} 52. a5 {[%emt 0:00:01]} Bc3 {[%emt 0:00:02]} 53. Bd8 {[%emt 0:00:05]} Ke8 {[%emt 0:00:02]} 54. Bb6 {[%emt 0:00:01]} Kf7 {[%emt 0:00:01]} 55. Bd8 {[%emt 0:00:01]} Ke8 {[%emt 0:00:03]} 56. Bb6 {[%emt 0:00:01]} Kf7 {[%emt 0:00:00] Weighted Error Value: White=0.12 (very precise) /Black=0.11 (very precise)} 1/2-1/2

[Event "Portuguese Team Blitz-ch 2022"]
[Site "Viseu"]
[Date "2022.06.12"]
[Round "3.7"]
[White "Paiva, Manuel Maria Fonseca"]
[Black "Pintor, Simao Maciel Abranch"]
[Result "0-1"]
[ECO "B24"]
[WhiteElo "1453"]
[BlackElo "2066"]
[Annotator "TA"]
[PlyCount "74"]
[EventDate "2022.06.12"]
[EventType "team-tourn"]
[EventCountry "POR"]
[SourceTitle "playchess.com"]
[Source "ChessBase"]
[SourceQuality "1"]
[TimeControl "180+2"]

{[%evp 9,74,11,12,9,14,10,14,6,0,0,-9,-6,52,0,48,-22,-17,-66,4,-13,0,-18,0,-2,-8,-7,87,13,15,0,0,-10,25,0,0,0,44,45,62,31,231,241,231,18,166,175,177,94,117,91,218,195,204,101,129,101,102,64,72,0,102,37,80,0,0,-29967,-12483]} 1. e4 {[%emt 0:00:03]} c5 {[%emt 0:00:01]} 2. Nc3 {[%emt 0:00:00]} Nc6 {[%emt 0:00:01]} 3. Bb5 {[%emt 0:00:02]} Nd4 {[%emt 0:00:02]} 4. Nf3 {[%emt 0:00:02]} a6 {[%emt 0:00:02]} 5. Bd3 {[%emt 0:00:01]} e6 {[%emt 0:00:09]} 6. Nxd4 {[%emt 0:00:02] B23: Closed Sicilian: Lines without g3.} cxd4 {[%emt 0:00:02]} 7. Ne2 {[%emt 0:00:01]} d5 {[%emt 0:00:04]} 8. O-O {[%emt 0:00:05] The position is equal.} dxe4 {[%emt 0:00:05]} 9. Bxe4 {[%emt 0:00:01]} Nf6 {[%emt 0:00:02]} 10. Bf3 {[%emt 0:00:07] [#]} Bd6 $146 {[%emt 0:00:12]} (10... Bc5 $11) ({Predecessor:} 10... Bc5 11. b4 Bb6 12. c4 O-O 13. d3 Re8 14. Bg5 h6 15. Bxf6 Qxf6 16. a4 Bc7 {1-0 (58) Lettieri,G (2445)-Boraso,A (2286) Acqui Terme 2022}) 11. d3 {[%emt 0:00:03]} (11. Nxd4 $14 e5 12. Nb3) 11... O-O {[%emt 0:00:05]} (11... Qb6 $11) 12. b3 {[%emt 0:00:04]} (12. Nxd4 $14 Bxh2+ 13. Kxh2 Qxd4 14. Kg1) 12... Qc7 $11 {[%emt 0:00:10]} 13. Bb2 {[%emt 0:00:02]} (13. h3 $11) 13... e5 {[%emt 0:00:11] Black is more active.} (13... Bxh2+ $15 14. Kh1 Be5) 14. Rc1 {[%emt 0:00:11]} Bg4 {[%emt 0:00:18]} 15. Ng3 {[%emt 0:00:09]} Qd7 {[%emt 0:00:13]} 16. c3 {[%emt 0:00:10]} dxc3 {[%emt 0:00:04]} 17. Rxc3 {[%emt 0:00:13]} h5 {[%emt 0:00:05] [#]} (17... Bxf3 $11 18. Qxf3 Rac8) 18. Ne4 {[%emt 0:00:11]} (18. Nxh5 $1 $16 Bxh5 19. Bxh5) 18... Nd5 {[%emt 0:00:41]} 19. Bxg4 {[%emt 0:00:18]} hxg4 {[%emt 0:00:12]} 20. Rc1 {[%emt 0:00:07]} Bc7 {[%emt 0:00:12]} 21. Nc5 {[%emt 0:00:07]} Qf5 {[%emt 0:00:13]} 22. Nxb7 {[%emt 0:00:10]} Rab8 {[%emt 0:00:09]} 23. Nc5 {[%emt 0:00:01]} Nf4 {[%emt 0:00:01]} 24. Nxa6 {[%emt 0:00:22]} (24. g3 $5 {[%cal Rg3f4]} Nh3+ 25. Kg2 $14) 24... Nxd3 $2 {[%emt 0:00:08]} (24... Rb6 $1 $14) 25. Rxc7 $18 {[%emt 0:00:14]} Nxb2 {[%emt 0:00:02]} 26. Qc1 {[%emt 0:00:03]} ({Better is} 26. Qd2 $18 Ra8 27. Nb4 (27. Qxb2 Rxa6 28. Rc5 Rb8 $16)) 26... Ra8 {[%emt 0:00:14]} (26... Nd3 $11 {and Black is okay.} 27. Qc2 Rbc8) 27. Qxb2 {[%emt 0:00:07]} Rxa6 {[%emt 0:00:00][%cal Ba8a6,Ba6d6,Bd6d8][%mdl 32]} 28. Re1 {[%emt 0:00:01]} (28. Rc5 $18) 28... Rd8 $16 {[%emt 0:00:05]} 29. Qc2 {[%emt 0:00:03]} Qf4 {[%emt 0:00:06]} (29... Qxc2 $16 30. Rxc2 f6) 30. Rc8 $40 {[%emt 0:00:03][%cal Rc8d8][%mdl 128] White has strong attack.} Rad6 {[%emt 0:00:01]} 31. Rxd8+ {[%emt 0:00:03]} Rxd8 {[%emt 0:00:00][%mdl 4096] Endgame KQR-KQR} 32. Rd1 {[%emt 0:00:04][%cal Rd1d8] Against Rd2} Rd4 {[%emt 0:00:11]} 33. Qc8+ {[%emt 0:00:05]} Kh7 {[%emt 0:00:01][%cal Rd4d1]} 34. Qc2+ {[%emt 0:00:00]} (34. Qc1 $16) 34... g6 {[%emt 0:00:01] [#]} (34... Kg8 $1 $11 {keeps the balance.}) 35. g3 {[%emt 0:00:11]} ({White should try} 35. Qe2 $1 $16) 35... Qf3 {[%emt 0:00:04]} 36. Rxd4 {[%emt 0:00:16]} (36. Re1 $16) 36... exd4 $11 {[%emt 0:00:01][%cal Be5d4,Bd4d3][%mdl 32]} 37. Qd2 {[%emt 0:00:09][%mdl 8192] [#]} (37. Qc8 $11) 37... d3 $1 {[%emt 0:00:01] Weighted Error Value: White=0.64/Black=0.44} 0-1

[Event "Portuguese Team Blitz-ch 2022"]
[Site "Viseu"]
[Date "2022.06.12"]
[Round "3.8"]
[White "Pipiras, Filipa Fortuna"]
[Black "Neto, Dinis Fonseca"]
[Result "1-0"]
[ECO "E34"]
[WhiteElo "2135"]
[BlackElo "1202"]
[Annotator "TA"]
[PlyCount "63"]
[EventDate "2022.06.12"]
[EventType "team-tourn"]
[EventCountry "POR"]
[SourceTitle "playchess.com"]
[Source "ChessBase"]
[SourceQuality "1"]
[TimeControl "180+2"]

{[%evp 9,62,14,69,40,52,14,48,46,71,62,80,79,213,229,218,213,244,89,525,531,536,527,1090,1102,1337,1339,1337,1297,1211,1272,1397,1412,1300,1295,1390,1321,6434,6434,5824,5724,29985,3004,29989,29990,29990,29988,29987,29986,29992,29993,29994,29995,29998,29999,29999]} 1. d4 Nf6 2. c4 e6 3. Nc3 Bb4 4. Qc2 d5 5. cxd5 Bxc3+ (5... exd5 $11 6. Nf3 O-O) 6. bxc3 $14 {And now dxe6 would win. E34: Nimzo-Indian: Classical: 4...d5.} exd5 7. Bg5 c6 8. e3 {White is slightly better.} Be6 9. Bd3 Nbd7 10. Ne2 O-O {[#]} (10... h6 $16 11. Bf4 O-O) 11. Bxh7+ $146 {[%mdl 512]} ({Predecessor:} 11. O-O Qc7 12. Bxf6 Nxf6 13. Rfe1 Rfe8 14. Nf4 Bd7 15. f3 Re7 16. e4 Qxf4 17. e5 {0-1 (45) Rolando,A (1200)-Bendada,W (1230) France 2002}) 11... Kh8 12. Bd3 Qc7 13. f4 $2 (13. f3 $18 {is more deadly.}) 13... Rfe8 $2 {[%mdl 8192]} (13... Ne4 $16 {is more resistant.}) 14. f5 Bxf5 15. Bxf5 Rxe3 16. Bxe3 Ne4 17. Bxe4 dxe4 18. Qxe4 Nf6 19. Qh4+ Kg8 20. O-O Re8 21. Bf4 Qd7 22. Be5 c5 23. Bxf6 gxf6 24. Nf4 {[%cal Be2f4,Bf4d5,Bd5f6][%mdl 32] [#] White threatens Nh5 and mate.} cxd4 25. cxd4 (25. Nh5 $142 Kf8 26. Nxf6 Qd8 27. Qh6+ Ke7 28. Rfe1+ Kd6 29. Rxe8 Qb6 30. Qf8+ Kc6 31. Rc8+ Kb5 32. Rb1+ Ka6 33. Rxb6+ Kxb6 34. Nd5+ Kb5 35. Qc5+ Ka6 36. Nc7#) 25... Qxd4+ 26. Kh1 {White mates.} Re4 27. Qg3+ Kf8 28. Rad1 Qb6 29. Nd5 {[%csl LRb6,LRf6]} Qd8 30. Nxf6 Qc7 31. Qg8+ Ke7 32. Qe8# {Black did not feel at home in the position after the opening.  Weighted Error Value: White=0.25 (precise) /Black=1.66} 1-0

[Event "Portuguese Team Blitz-ch 2022"]
[Site "Viseu"]
[Date "2022.06.12"]
[Round "4.1"]
[White "Fernandez Lopez, Ruben"]
[Black "Veiga, Jose Francisco R P N"]
[Result "1-0"]
[ECO "C95"]
[WhiteElo "2324"]
[BlackElo "2377"]
[Annotator "TA"]
[PlyCount "62"]
[EventDate "2022.06.12"]
[EventType "team-tourn"]
[EventCountry "POR"]
[SourceTitle "playchess.com"]
[Source "ChessBase"]
[SourceQuality "1"]
[TimeControl "180+2"]

{[%evp 24,62,14,25,56,19,33,32,56,20,42,16,33,20,90,0,17,10,35,-132,0,-142,-2,-39,-37,-41,-52,-47,-39,-45,-52,-28,0,-7,45,-20,38,43,46,25,1432]} 1. e4 e5 2. Nf3 Nc6 3. Bb5 a6 4. Ba4 Nf6 5. O-O Be7 6. Re1 b5 7. Bb3 d6 8. c3 O-O 9. h3 Nb8 10. d4 Nbd7 11. Nbd2 {[%cal Bb1d2,Bd2f1,Bf1e3,Be3f5][%mdl 32]} Bb7 12. Bc2 c5 13. d5 $1 {13.d5 is better than 13.Nf1.} Qc7 {C95: Closed Ruy Lopez: Breyer Variation with 10 d4.} 14. Nf1 Rfb8 15. Ne3 Bf8 {White is slightly better.} 16. Nf5 Bc8 17. Nh2 (17. c4 $5) 17... c4 18. Qf3 Nc5 {[#]} (18... a5 $11) 19. Bg5 {White is more active.} (19. Nh6+ $1 $16 Kh8 20. Bg5) 19... Ne8 {[#]} 20. Ng4 $146 ({Predecessor:} 20. a3 a5 21. Qg3 Bxf5 22. exf5 f6 23. Be3 Nd3 24. Bxd3 cxd3 25. Rad1 Qc4 26. Bc1 Qxd5 27. Rxd3 {1-0 (39) Boehm,J (1939)-Arvai,E (2006) Porec 2015}) 20... b4 21. Nge3 $2 (21. cxb4 $14 {stays ahead.} Rxb4 22. b3) 21... bxc3 (21... f6 $17 22. Bh4 g6) 22. bxc3 (22. Nxc4 $11 Bxf5 23. Qxf5) 22... Rb2 (22... f6 $17 23. Bh4 g6) 23. Qd1 f6 ({But not} 23... Bxf5 24. exf5 h6 25. Bh4 $14) 24. Bh4 ({Don't play} 24. Nxc4 Rxc2 25. Qxc2 Bxf5 26. exf5 fxg5 $17) 24... g6 ({Resist} 24... Bxf5 25. exf5 Nd3 26. Bxd3 cxd3 27. Qxd3 $16) 25. Nxc4 Rxc2 26. Qxc2 {Strongly threatening Nfe3.} gxf5 27. exf5 e4 28. Ne3 (28. g4 $5 {[%cal Rc4d2]}) 28... Bd7 (28... h5 $11) 29. Reb1 ({White should try} 29. Qd1 $14) 29... Rb8 ({Black should play} 29... Bh6 $11) 30. Rxb8 $14 Qxb8 31. Qe2 Qb2 $2 {[%mdl 8192] Weighted Error Value: White=0.45/Black=0.42} 1-0